[Event "Early-Titled-Tuesday-Blitz-November-28-2023"]
[Site "Chess.com"]
[Date "2023.11.28"]
[Round "3"]
[White "bazar-wokzal"]
[Black "Cheer_Down"]
[Result "1/2-1/2"]
[WhiteElo "2633"]
[BlackElo "2490"]
[TimeControl "180+1"]
[EndTime "8:29:46 PST"]
[Termination "Game drawn by repetition"]

1. e4 {[%clk 0:03:00.9]} 1... e6 {[%clk 0:02:59.3]} 2. d4 {[%clk 0:02:59.6]}
2... d5 {[%clk 0:02:59.2]} 3. e5 {[%clk 0:02:57.7]} 3... c5 {[%clk 0:02:59]} 4.
c3 {[%clk 0:02:57.8]} 4... Nc6 {[%clk 0:02:58.8]} 5. Nf3 {[%clk 0:02:57.8]} 5...
Nge7 {[%clk 0:02:58.4]} 6. Na3 {[%clk 0:02:55.3]} 6... cxd4 {[%clk 0:02:54.9]}
7. cxd4 {[%clk 0:02:55.4]} 7... Nf5 {[%clk 0:02:54.8]} 8. Nc2 {[%clk 0:02:55.7]}
8... Bd7 {[%clk 0:02:51]} 9. Bd3 {[%clk 0:02:55]} 9... Nb4 {[%clk 0:02:48.3]}
10. Nxb4 {[%clk 0:02:39.6]} 10... Bxb4+ {[%clk 0:02:48.1]} 11. Bd2 {[%clk
0:02:39.9]} 11... Bxd2+ {[%clk 0:02:34.5]} 12. Qxd2 {[%clk 0:02:39.7]} 12... Nh4
{[%clk 0:02:34.7]} 13. O-O-O {[%clk 0:02:15.2]} 13... Nxf3 {[%clk 0:02:32.2]}
14. gxf3 {[%clk 0:02:15.2]} 14... Qb6 {[%clk 0:02:26.3]} 15. Bc2 {[%clk
0:01:55.7]} 15... Rc8 {[%clk 0:02:03.4]} 16. Kb1 {[%clk 0:01:55.4]} 16... a5
{[%clk 0:01:26.9]} 17. Rhg1 {[%clk 0:01:52.8]} 17... g6 {[%clk 0:01:26.9]} 18.
Qh6 {[%clk 0:01:39.4]} 18... Rc4 {[%clk 0:01:19.3]} 19. Rg4 {[%clk 0:01:32.2]}
19... Rb4 {[%clk 0:01:04.3]} 20. b3 {[%clk 0:01:18.2]} 20... a4 {[%clk
0:01:03.7]} 21. Rd3 {[%clk 0:01:17]} 21... axb3 {[%clk 0:01:02.5]} 22. axb3
{[%clk 0:01:12.6]} 22... Bb5 {[%clk 0:00:58.4]} 23. Rc3 {[%clk 0:01:06]} 23...
Bc6 {[%clk 0:00:53.1]} 24. Qf4 {[%clk 0:00:59.1]} 24... h5 {[%clk 0:00:49.6]}
25. Rg1 {[%clk 0:00:41.2]} 25... Qxd4 {[%clk 0:00:45.3]} 26. Qe3 {[%clk
0:00:15.8]} 26... Qxe3 {[%clk 0:00:31.5]} 27. fxe3 {[%clk 0:00:16.7]} 27... Ke7
{[%clk 0:00:31.2]} 28. Rd1 {[%clk 0:00:15.2]} 28... Ra8 {[%clk 0:00:29.6]} 29.
Kb2 {[%clk 0:00:14.6]} 29... Rb6 {[%clk 0:00:27.8]} 30. Rd4 {[%clk 0:00:14.1]}
30... Rba6 {[%clk 0:00:27]} 31. Bb1 {[%clk 0:00:13.7]} 31... Rg8 {[%clk
0:00:17.2]} 32. h4 {[%clk 0:00:13.2]} 32... Rc8 {[%clk 0:00:14.7]} 33. f4 {[%clk
0:00:12.9]} 33... Bd7 {[%clk 0:00:14.7]} 34. Rxc8 {[%clk 0:00:12.4]} 34... Bxc8
{[%clk 0:00:14.9]} 35. Rb4 {[%clk 0:00:12.7]} 35... Kd8 {[%clk 0:00:14.1]} 36.
Bd3 {[%clk 0:00:12.9]} 36... Rc6 {[%clk 0:00:13.4]} 37. Bb5 {[%clk 0:00:12.2]}
37... Rc5 {[%clk 0:00:12.8]} 38. Ba4 {[%clk 0:00:10.4]} 38... Kc7 {[%clk
0:00:12.5]} 39. Rd4 {[%clk 0:00:09.5]} 39... Bd7 {[%clk 0:00:12.2]} 40. b4
{[%clk 0:00:08.9]} 40... Rc4 {[%clk 0:00:11.2]} 41. Rxc4+ {[%clk 0:00:08.5]}
41... dxc4 {[%clk 0:00:11.3]} 42. Bc2 {[%clk 0:00:08.2]} 42... Bc6 {[%clk
0:00:10.6]} 43. Kc3 {[%clk 0:00:08.5]} 43... b5 {[%clk 0:00:09.7]} 44. Kd4
{[%clk 0:00:09]} 44... Bd7 {[%clk 0:00:08.8]} 45. Bb1 {[%clk 0:00:09.2]} 45...
Kb6 {[%clk 0:00:08.1]} 46. Bc2 {[%clk 0:00:09.7]} 46... Bc6 {[%clk 0:00:08.5]}
47. Bb1 {[%clk 0:00:09.9]} 47... Be8 {[%clk 0:00:09]} 48. Bc2 {[%clk 0:00:10.1]}
48... Bc6 {[%clk 0:00:09.2]} 49. e4 {[%clk 0:00:10.3]} 49... Be8 {[%clk
0:00:09]} 50. f5 {[%clk 0:00:10.7]} 50... Bd7 {[%clk 0:00:08.1]} 51. f6 {[%clk
0:00:08.5]} 51... Be8 {[%clk 0:00:07.2]} 52. Bb1 {[%clk 0:00:08.8]} 52... Kc6
{[%clk 0:00:07.2]} 53. Bc2 {[%clk 0:00:09.1]} 53... Kb6 {[%clk 0:00:07.2]} 54.
Bb1 {[%clk 0:00:09.6]} 54... Kc6 {[%clk 0:00:06.9]} 55. Bc2 {[%clk 0:00:10.2]}
55... Kb6 {[%clk 0:00:06.7]} 1/2-1/2

[Event "Early-Titled-Tuesday-Blitz-November-28-2023"]
[Site "Chess.com"]
[Date "2023.11.28"]
[Round "3"]
[White "nochewycandy"]
[Black "TRadjabov"]
[Result "0-1"]
[WhiteElo "2772"]
[BlackElo "3022"]
[TimeControl "180+1"]
[EndTime "8:29:47 PST"]
[Termination "TRadjabov won by resignation"]

1. e4 {[%clk 0:03:00.9]} 1... e5 {[%clk 0:02:52.5]} 2. Nf3 {[%clk 0:03:01.3]}
2... Nc6 {[%clk 0:02:52.1]} 3. Bb5 {[%clk 0:03:01.9]} 3... a6 {[%clk 0:02:50.9]}
4. Ba4 {[%clk 0:03:02.4]} 4... Nf6 {[%clk 0:02:50.8]} 5. O-O {[%clk 0:03:01.2]}
5... d6 {[%clk 0:02:48.1]} 6. c3 {[%clk 0:02:56.9]} 6... Bd7 {[%clk 0:02:47.4]}
7. d4 {[%clk 0:02:53.2]} 7... g6 {[%clk 0:02:33]} 8. Re1 {[%clk 0:02:51.8]} 8...
Bg7 {[%clk 0:02:32]} 9. Bc2 {[%clk 0:02:49.1]} 9... O-O {[%clk 0:02:24.1]} 10.
Nbd2 {[%clk 0:02:49.7]} 10... Re8 {[%clk 0:02:20]} 11. Nf1 {[%clk 0:02:17.4]}
11... exd4 {[%clk 0:02:11.4]} 12. cxd4 {[%clk 0:02:17.4]} 12... Bg4 {[%clk
0:02:11.9]} 13. Ng3 {[%clk 0:02:08.5]} 13... Nh5 {[%clk 0:02:07.2]} 14. Be3
{[%clk 0:02:03.6]} 14... Nxg3 {[%clk 0:02:03.8]} 15. hxg3 {[%clk 0:02:01.6]}
15... Qf6 {[%clk 0:02:00.2]} 16. Rc1 {[%clk 0:01:18]} 16... Bxf3 {[%clk
0:01:53.3]} 17. gxf3 {[%clk 0:01:16.4]} 17... Nxd4 {[%clk 0:01:53.4]} 18. Bxd4
{[%clk 0:01:16.4]} 18... Qxd4 {[%clk 0:01:54]} 19. Qxd4 {[%clk 0:01:15.8]} 19...
Bxd4 {[%clk 0:01:54.7]} 20. Bb3 {[%clk 0:01:16.3]} 20... c6 {[%clk 0:01:48.6]}
21. Re2 {[%clk 0:01:14.6]} 21... Re7 {[%clk 0:01:42.4]} 22. Rd1 {[%clk
0:01:12.3]} 22... c5 {[%clk 0:01:37.4]} 23. Bd5 {[%clk 0:01:09.2]} 23... Rc8
{[%clk 0:01:32.8]} 24. b3 {[%clk 0:01:07.1]} 24... b5 {[%clk 0:01:31.8]} 25. Rc2
{[%clk 0:01:07.3]} 25... Rcc7 {[%clk 0:01:25.9]} 26. a4 {[%clk 0:01:03.1]} 26...
Kg7 {[%clk 0:01:23]} 27. Rdd2 {[%clk 0:00:57.6]} 27... h5 {[%clk 0:01:21.9]} 28.
Kg2 {[%clk 0:00:57.1]} 28... f5 {[%clk 0:01:06.7]} 29. Rd1 {[%clk 0:00:34.2]}
29... Kf6 {[%clk 0:01:01.3]} 30. Rdc1 {[%clk 0:00:33.6]} 30... Rh7 {[%clk
0:00:54.9]} 31. Ra2 {[%clk 0:00:30.9]} 31... h4 {[%clk 0:00:52.7]} 32. axb5
{[%clk 0:00:26.2]} 32... axb5 {[%clk 0:00:52.8]} 33. Ra6 {[%clk 0:00:26.9]}
33... Rcd7 {[%clk 0:00:36.4]} 34. gxh4 {[%clk 0:00:20.7]} 34... Rxh4 {[%clk
0:00:34.4]} 35. Bc6 {[%clk 0:00:21.2]} 35... Rdh7 {[%clk 0:00:32.7]} 36. Rc2
{[%clk 0:00:14.6]} 36... Rh1 {[%clk 0:00:24.3]} 37. f4 {[%clk 0:00:14.8]} 37...
R7h2+ {[%clk 0:00:23.5]} 38. Kf3 {[%clk 0:00:13.8]} 38... Rb1 {[%clk 0:00:14.2]}
39. exf5 {[%clk 0:00:13.4]} 39... gxf5 {[%clk 0:00:13.7]} 40. Kg3 {[%clk
0:00:12.3]} 40... Rh6 {[%clk 0:00:11.9]} 41. Bd5 {[%clk 0:00:10.7]} 41... Kg7
{[%clk 0:00:08.4]} 42. Re2 {[%clk 0:00:10.5]} 42... Bf6 {[%clk 0:00:07.1]} 43.
Re6 {[%clk 0:00:10.1]} 43... Bh4+ {[%clk 0:00:06.8]} 44. Kf3 {[%clk 0:00:10.3]}
44... Rxe6 {[%clk 0:00:07.2]} 45. Bxe6 {[%clk 0:00:10.5]} 45... Be7 {[%clk
0:00:05.2]} 46. Bxf5 {[%clk 0:00:10.2]} 46... Rxb3+ {[%clk 0:00:05]} 47. Kg4
{[%clk 0:00:10.8]} 47... Kf6 {[%clk 0:00:04.9]} 48. f3 {[%clk 0:00:10.7]} 48...
c4 {[%clk 0:00:05.2]} 49. Be4 {[%clk 0:00:11.2]} 49... Rb2 {[%clk 0:00:05.4]}
50. Rb6 {[%clk 0:00:11.3]} 50... c3 {[%clk 0:00:05.5]} 51. Rc6 {[%clk
0:00:11.2]} 51... b4 {[%clk 0:00:05.8]} 52. Rc7 {[%clk 0:00:11.3]} 52... Rg2+
{[%clk 0:00:04.7]} 53. Kh3 {[%clk 0:00:11.6]} 53... Re2 {[%clk 0:00:05.3]} 54.
Kg3 {[%clk 0:00:11.9]} 54... Ke6 {[%clk 0:00:04.4]} 55. f5+ {[%clk 0:00:12.4]}
55... Kf6 {[%clk 0:00:04.9]} 56. Bd3 {[%clk 0:00:11.7]} 56... Rd2 {[%clk
0:00:04.8]} 57. Be4 {[%clk 0:00:12.3]} 57... d5 {[%clk 0:00:05.1]} 58. Bb1
{[%clk 0:00:12.1]} 58... Bd6+ {[%clk 0:00:05.2]} 0-1

[Event "Early-Titled-Tuesday-Blitz-November-28-2023"]
[Site "Chess.com"]
[Date "2023.11.28"]
[Round "3"]
[White "crescentmoon2411"]
[Black "deribas12345"]
[Result "0-1"]
[WhiteElo "2937"]
[BlackElo "2542"]
[TimeControl "180+1"]
[EndTime "8:29:49 PST"]
[Termination "deribas12345 won by resignation"]

1. e4 {[%clk 0:03:00.9]} 1... e6 {[%clk 0:03:00]} 2. d4 {[%clk 0:03:00.9]} 2...
d5 {[%clk 0:03:00.9]} 3. e5 {[%clk 0:03:01.2]} 3... c5 {[%clk 0:03:00.8]} 4. c3
{[%clk 0:03:02.1]} 4... Qa5 {[%clk 0:03:01.1]} 5. Nf3 {[%clk 0:03:01.6]} 5...
cxd4 {[%clk 0:03:01.1]} 6. Nxd4 {[%clk 0:03:02.5]} 6... Nc6 {[%clk 0:03:01.5]}
7. Bb5 {[%clk 0:03:02.4]} 7... Bd7 {[%clk 0:03:00.9]} 8. Bxc6 {[%clk 0:03:00.9]}
8... bxc6 {[%clk 0:03:01.1]} 9. b3 {[%clk 0:02:59.6]} 9... c5 {[%clk 0:02:55.6]}
10. Nc2 {[%clk 0:02:59.2]} 10... Ne7 {[%clk 0:02:51.2]} 11. O-O {[%clk
0:02:58.8]} 11... Ng6 {[%clk 0:02:45.4]} 12. Re1 {[%clk 0:02:58.5]} 12... Be7
{[%clk 0:02:45]} 13. Ba3 {[%clk 0:02:44.7]} 13... O-O {[%clk 0:02:41.7]} 14. b4
{[%clk 0:02:43.9]} 14... Qc7 {[%clk 0:02:34.4]} 15. bxc5 {[%clk 0:02:41.1]}
15... Ba4 {[%clk 0:02:31.9]} 16. Nd2 {[%clk 0:02:35.1]} 16... Nxe5 {[%clk
0:02:28.4]} 17. Nb3 {[%clk 0:02:35.4]} 17... Nc4 {[%clk 0:02:26.9]} 18. Bc1
{[%clk 0:02:31.9]} 18... Bxc5 {[%clk 0:02:23.1]} 19. Qg4 {[%clk 0:02:28.1]}
19... Bd6 {[%clk 0:02:12.3]} 20. h4 {[%clk 0:02:26.2]} 20... f5 {[%clk
0:02:03.9]} 21. Qh3 {[%clk 0:02:23.5]} 21... Rae8 {[%clk 0:02:02.7]} 22. Ncd4
{[%clk 0:02:20.2]} 22... Bd7 {[%clk 0:01:55.4]} 23. h5 {[%clk 0:02:13.4]} 23...
e5 {[%clk 0:01:52.7]} 24. Nf3 {[%clk 0:02:08.7]} 24... f4 {[%clk 0:01:48.9]} 25.
Qh4 {[%clk 0:02:07.8]} 25... h6 {[%clk 0:01:47]} 26. Nbd2 {[%clk 0:02:00.7]}
26... e4 {[%clk 0:01:25.1]} 27. Nd4 {[%clk 0:01:48.3]} 27... Ne5 {[%clk
0:01:15.9]} 28. c4 {[%clk 0:01:42.4]} 28... Nd3 {[%clk 0:01:12.9]} 29. Rd1
{[%clk 0:01:19.4]} 29... Be5 {[%clk 0:01:07.9]} 30. Nc2 {[%clk 0:01:04.8]} 30...
Bf6 {[%clk 0:00:44.8]} 31. Qh2 {[%clk 0:01:02.1]} 31... Nxf2 {[%clk 0:00:44.6]}
32. Kxf2 {[%clk 0:01:00.6]} 32... e3+ {[%clk 0:00:44]} 33. Kg1 {[%clk
0:00:58.5]} 33... Bxa1 {[%clk 0:00:43]} 34. Nf3 {[%clk 0:00:56.7]} 34... e2
{[%clk 0:00:32.1]} 35. Rxd5 {[%clk 0:00:52.7]} 35... Bf6 {[%clk 0:00:27.2]} 36.
Qxf4 {[%clk 0:00:48.4]} 36... Qxf4 {[%clk 0:00:25.1]} 37. Bxf4 {[%clk
0:00:49.3]} 37... Be6 {[%clk 0:00:20.5]} 38. Rd6 {[%clk 0:00:39.3]} 38... Bxc4
{[%clk 0:00:18.8]} 39. Bg3 {[%clk 0:00:33.3]} 39... a5 {[%clk 0:00:15.1]} 40. a3
{[%clk 0:00:30.3]} 40... a4 {[%clk 0:00:15.2]} 41. Kh2 {[%clk 0:00:25.4]} 41...
Rd8 {[%clk 0:00:14.4]} 42. Rb6 {[%clk 0:00:23.1]} 42... Bb3 {[%clk 0:00:14.7]}
43. Nce1 {[%clk 0:00:20.5]} 43... Rfe8 {[%clk 0:00:15.1]} 44. Rb7 {[%clk
0:00:18.5]} 44... Rd5 {[%clk 0:00:15.1]} 45. Ra7 {[%clk 0:00:17.3]} 45... Rxh5+
{[%clk 0:00:15.1]} 46. Kg1 {[%clk 0:00:17.9]} 46... Rd5 {[%clk 0:00:15.7]} 47.
Bf2 {[%clk 0:00:18]} 47... Rd1 {[%clk 0:00:15.4]} 48. Kh2 {[%clk 0:00:16.9]}
48... Be5+ {[%clk 0:00:14.5]} 49. Nxe5 {[%clk 0:00:16.8]} 49... Rxe5 {[%clk
0:00:14.3]} 50. Nf3 {[%clk 0:00:16]} 50... Rf5 {[%clk 0:00:13.4]} 51. Re7 {[%clk
0:00:15.9]} 51... Bd5 {[%clk 0:00:09.9]} 52. Kg3 {[%clk 0:00:11.5]} 52... Bxf3
{[%clk 0:00:09.9]} 53. gxf3 {[%clk 0:00:12.4]} 53... Rd3 {[%clk 0:00:08.7]} 54.
Rxe2 {[%clk 0:00:12]} 54... Rdxf3+ {[%clk 0:00:07.7]} 0-1

[Event "Early-Titled-Tuesday-Blitz-November-28-2023"]
[Site "Chess.com"]
[Date "2023.11.28"]
[Round "3"]
[White "FischerKasparow"]
[Black "maracayo"]
[Result "0-1"]
[WhiteElo "2092"]
[BlackElo "2356"]
[TimeControl "180+1"]
[EndTime "8:29:52 PST"]
[Termination "maracayo won on time"]

1. e4 {[%clk 0:02:55.9]} 1... d6 {[%clk 0:02:59.6]} 2. d4 {[%clk 0:02:55.5]}
2... Nf6 {[%clk 0:02:59.9]} 3. Nc3 {[%clk 0:02:55.6]} 3... c6 {[%clk 0:03:00.4]}
4. a4 {[%clk 0:02:50.8]} 4... Qa5 {[%clk 0:03:00.2]} 5. Bd3 {[%clk 0:02:49.1]}
5... e5 {[%clk 0:02:59.5]} 6. dxe5 {[%clk 0:02:43.6]} 6... dxe5 {[%clk
0:02:58.8]} 7. Nf3 {[%clk 0:02:43.4]} 7... Nbd7 {[%clk 0:02:57.4]} 8. O-O {[%clk
0:02:43]} 8... Be7 {[%clk 0:02:56.7]} 9. Bd2 {[%clk 0:02:40.3]} 9... Qc7 {[%clk
0:02:56.3]} 10. Re1 {[%clk 0:02:39.6]} 10... O-O {[%clk 0:02:56.1]} 11. h3
{[%clk 0:02:39.7]} 11... b6 {[%clk 0:02:55.5]} 12. Nh4 {[%clk 0:02:32.8]} 12...
Re8 {[%clk 0:02:54]} 13. Bc4 {[%clk 0:02:26.9]} 13... Nc5 {[%clk 0:02:47.8]} 14.
Nf5 {[%clk 0:02:16.9]} 14... Bf8 {[%clk 0:02:32.5]} 15. Qf3 {[%clk 0:02:10.4]}
15... Be6 {[%clk 0:02:25.1]} 16. Bf1 {[%clk 0:01:49.9]} 16... a5 {[%clk
0:02:18]} 17. Rad1 {[%clk 0:01:47.7]} 17... Nfd7 {[%clk 0:02:03.9]} 18. Qg3
{[%clk 0:01:36.9]} 18... Kh8 {[%clk 0:02:02.2]} 19. Be3 {[%clk 0:01:20.1]} 19...
Nxe4 {[%clk 0:01:50.4]} 20. Nxe4 {[%clk 0:01:13.7]} 20... Bxf5 {[%clk
0:01:49.4]} 21. Ng5 {[%clk 0:01:07.2]} 21... Nf6 {[%clk 0:01:36.9]} 22. Bc4
{[%clk 0:01:01.3]} 22... Bg6 {[%clk 0:01:21.2]} 23. c3 {[%clk 0:00:51.7]} 23...
Rad8 {[%clk 0:00:47.6]} 24. f3 {[%clk 0:00:43.6]} 24... Nd5 {[%clk 0:00:41.3]}
25. Bc1 {[%clk 0:00:38.1]} 25... f6 {[%clk 0:00:40.7]} 26. Ne4 {[%clk
0:00:37.7]} 26... Qb7 {[%clk 0:00:33.1]} 27. h4 {[%clk 0:00:35.7]} 27... b5
{[%clk 0:00:32.3]} 28. axb5 {[%clk 0:00:34.1]} 28... cxb5 {[%clk 0:00:32.4]} 29.
Ba2 {[%clk 0:00:30.2]} 29... Bf7 {[%clk 0:00:30.1]} 30. c4 {[%clk 0:00:19.9]}
30... Nb4 {[%clk 0:00:27.5]} 31. Bb1 {[%clk 0:00:18.5]} 31... bxc4 {[%clk
0:00:21.3]} 32. Nc3 {[%clk 0:00:18.6]} 32... Nd3 {[%clk 0:00:20.1]} 33. Bxd3
{[%clk 0:00:15.6]} 33... Rxd3 {[%clk 0:00:21]} 34. Rxd3 {[%clk 0:00:13.2]} 34...
cxd3 {[%clk 0:00:20.4]} 35. Kh2 {[%clk 0:00:13.4]} 35... Bd6 {[%clk 0:00:18.9]}
36. Rd1 {[%clk 0:00:11.8]} 36... Bg6 {[%clk 0:00:17.5]} 37. Ne4 {[%clk
0:00:07.7]} 37... Bxe4 {[%clk 0:00:13.2]} 38. fxe4 {[%clk 0:00:08.5]} 38... Qxe4
{[%clk 0:00:12.9]} 39. Be3 {[%clk 0:00:03.5]} 39... Bf8 {[%clk 0:00:11.8]} 40.
Qf3 {[%clk 0:00:02.8]} 40... Qxf3 {[%clk 0:00:11]} 41. gxf3 {[%clk 0:00:03.7]}
41... Rd8 {[%clk 0:00:11.4]} 42. Rd2 {[%clk 0:00:03]} 42... a4 {[%clk
0:00:10.4]} 43. Kg3 {[%clk 0:00:03.1]} 43... f5 {[%clk 0:00:10.1]} 44. h5 {[%clk
0:00:02.7]} 44... f4+ {[%clk 0:00:09.9]} 45. Bxf4 {[%clk 0:00:01.3]} 45... exf4+
{[%clk 0:00:10.8]} 46. Kxf4 {[%clk 0:00:01.9]} 46... Bb4 {[%clk 0:00:11.1]} 47.
Rd1 {[%clk 0:00:01.2]} 47... d2 {[%clk 0:00:11.3]} 48. Ke4 {[%clk 0:00:01.4]}
48... Kg8 {[%clk 0:00:11.1]} 49. f4 {[%clk 0:00:01.3]} 49... Kf7 {[%clk
0:00:11.4]} 50. f5 {[%clk 0:00:01.5]} 50... Kf6 {[%clk 0:00:11.7]} 51. Kf4
{[%clk 0:00:01.9]} 51... h6 {[%clk 0:00:11.6]} 52. Kg4 {[%clk 0:00:01.9]} 52...
Rd4+ {[%clk 0:00:10.6]} 53. Kf3 {[%clk 0:00:01.6]} 53... Kxf5 {[%clk 0:00:11.5]}
54. Ke3 {[%clk 0:00:01.7]} 54... Rd5 {[%clk 0:00:09.8]} 55. Kf3 {[%clk
0:00:01.5]} 55... Rd3+ {[%clk 0:00:09]} 56. Ke2 {[%clk 0:00:01.3]} 56... Ke4
{[%clk 0:00:09.1]} 0-1

[Event "Early-Titled-Tuesday-Blitz-November-28-2023"]
[Site "Chess.com"]
[Date "2023.11.28"]
[Round "3"]
[White "Bodhanas"]
[Black "Shivananda1964"]
[Result "0-1"]
[WhiteElo "2210"]
[BlackElo "2406"]
[TimeControl "180+1"]
[EndTime "8:29:53 PST"]
[Termination "Shivananda1964 won by checkmate"]

1. d4 {[%clk 0:03:00.9]} 1... Nf6 {[%clk 0:02:57.6]} 2. Nf3 {[%clk 0:03:00.4]}
2... b5 {[%clk 0:02:56.5]} 3. Bf4 {[%clk 0:02:59.7]} 3... Bb7 {[%clk 0:02:56.3]}
4. e3 {[%clk 0:02:59.5]} 4... a6 {[%clk 0:02:56.3]} 5. c3 {[%clk 0:02:59]} 5...
d6 {[%clk 0:02:51]} 6. Be2 {[%clk 0:02:57.9]} 6... g6 {[%clk 0:02:50.7]} 7. Nbd2
{[%clk 0:02:56.7]} 7... Bg7 {[%clk 0:02:51.1]} 8. O-O {[%clk 0:02:55.3]} 8...
O-O {[%clk 0:02:50.8]} 9. Qc2 {[%clk 0:02:48.1]} 9... c6 {[%clk 0:02:48.3]} 10.
e4 {[%clk 0:02:47.4]} 10... Nbd7 {[%clk 0:02:44.9]} 11. Rad1 {[%clk 0:02:44.4]}
11... Nh5 {[%clk 0:02:42]} 12. Be3 {[%clk 0:02:42.9]} 12... e5 {[%clk
0:02:42.1]} 13. Nb3 {[%clk 0:02:30.4]} 13... a5 {[%clk 0:02:27.3]} 14. dxe5
{[%clk 0:02:25.5]} 14... dxe5 {[%clk 0:02:26.8]} 15. Nc5 {[%clk 0:02:22.7]}
15... Bc8 {[%clk 0:02:18.9]} 16. Qd2 {[%clk 0:02:14.5]} 16... Nhf6 {[%clk
0:02:13.8]} 17. Bg5 {[%clk 0:02:11.1]} 17... Qb6 {[%clk 0:02:10.9]} 18. Bxf6
{[%clk 0:01:59.5]} 18... Qxc5 {[%clk 0:01:15.1]} 19. Bxg7 {[%clk 0:01:57.4]}
19... Kxg7 {[%clk 0:01:14.7]} 20. b3 {[%clk 0:01:41.3]} 20... Re8 {[%clk
0:01:12.2]} 21. c4 {[%clk 0:01:40.8]} 21... b4 {[%clk 0:01:11.9]} 22. Kh1 {[%clk
0:01:29.4]} 22... Nf8 {[%clk 0:01:08.6]} 23. Qd6 {[%clk 0:01:26.4]} 23... Ne6
{[%clk 0:00:50.5]} 24. g3 {[%clk 0:01:12.6]} 24... Qxd6 {[%clk 0:00:21.6]} 25.
Rxd6 {[%clk 0:01:11.1]} 25... c5 {[%clk 0:00:18.1]} 26. Rd5 {[%clk 0:00:54.1]}
26... Bb7 {[%clk 0:00:13.3]} 27. Rd7 {[%clk 0:00:49.4]} 27... Bxe4 {[%clk
0:00:11.2]} 28. Kg1 {[%clk 0:00:44.5]} 28... Nd4 {[%clk 0:00:08.3]} 29. Nxd4
{[%clk 0:00:40.7]} 29... cxd4 {[%clk 0:00:08.3]} 30. f4 {[%clk 0:00:37.7]} 30...
Bf5 {[%clk 0:00:04.4]} 31. Rc7 {[%clk 0:00:34.5]} 31... e4 {[%clk 0:00:04.4]}
32. g4 {[%clk 0:00:33]} 32... Bc8 {[%clk 0:00:03.3]} 33. f5 {[%clk 0:00:32.1]}
33... d3 {[%clk 0:00:03.3]} 34. Bd1 {[%clk 0:00:23]} 34... gxf5 {[%clk
0:00:03.6]} 35. gxf5 {[%clk 0:00:22.6]} 35... Kf6 {[%clk 0:00:04.1]} 36. Rc6+
{[%clk 0:00:22]} 36... Ke5 {[%clk 0:00:04.4]} 37. Kf2 {[%clk 0:00:19.7]} 37...
Kd4 {[%clk 0:00:04.4]} 38. Re1 {[%clk 0:00:19]} 38... Bb7 {[%clk 0:00:03.6]} 39.
Rd6+ {[%clk 0:00:18.5]} 39... Kc3 {[%clk 0:00:04.1]} 40. Bg4 {[%clk 0:00:17.5]}
40... d2 {[%clk 0:00:04.1]} 41. Re3+ {[%clk 0:00:16.6]} 41... Kc2 {[%clk
0:00:04.5]} 42. Re2 {[%clk 0:00:16.3]} 42... e3+ {[%clk 0:00:05.1]} 43. Rxe3
{[%clk 0:00:16.6]} 43... Rxe3 {[%clk 0:00:05.2]} 44. Kxe3 {[%clk 0:00:17.2]}
44... Re8+ {[%clk 0:00:05.6]} 45. Kf2 {[%clk 0:00:16.6]} 45... Rg8 {[%clk
0:00:05.6]} 46. h3 {[%clk 0:00:16.2]} 46... Rxg4 {[%clk 0:00:05.2]} 47. hxg4
{[%clk 0:00:16.8]} 47... d1=Q {[%clk 0:00:05.4]} 48. Rxd1 {[%clk 0:00:17.5]}
48... Kxd1 {[%clk 0:00:05.8]} 49. c5 {[%clk 0:00:17.8]} 49... Kc2 {[%clk
0:00:05.8]} 50. Kg3 {[%clk 0:00:18.4]} 50... Kb2 {[%clk 0:00:05.9]} 51. Kh4
{[%clk 0:00:19.1]} 51... Kxa2 {[%clk 0:00:06.5]} 52. Kh5 {[%clk 0:00:19.7]}
52... Kxb3 {[%clk 0:00:07]} 53. Kh6 {[%clk 0:00:20.4]} 53... a4 {[%clk
0:00:07.7]} 54. Kxh7 {[%clk 0:00:21.1]} 54... a3 {[%clk 0:00:08.4]} 55. g5
{[%clk 0:00:21.8]} 55... a2 {[%clk 0:00:09]} 56. g6 {[%clk 0:00:22.5]} 56...
a1=Q {[%clk 0:00:09.5]} 57. gxf7 {[%clk 0:00:22.7]} 57... Qf6 {[%clk 0:00:08.6]}
58. Kg8 {[%clk 0:00:22.6]} 58... Qxf5 {[%clk 0:00:08.8]} 59. f8=Q {[%clk
0:00:22.5]} 59... Qxf8+ {[%clk 0:00:08.9]} 60. Kxf8 {[%clk 0:00:22.9]} 60... Kc4
{[%clk 0:00:09.5]} 61. Ke7 {[%clk 0:00:23.4]} 61... Kxc5 {[%clk 0:00:09.1]} 62.
Kd7 {[%clk 0:00:23.7]} 62... b3 {[%clk 0:00:09.1]} 63. Kc7 {[%clk 0:00:24.1]}
63... b2 {[%clk 0:00:09.7]} 64. Kxb7 {[%clk 0:00:24.4]} 64... b1=Q+ {[%clk
0:00:10.1]} 65. Kc7 {[%clk 0:00:24.8]} 65... Qh7+ {[%clk 0:00:09.5]} 66. Kd8
{[%clk 0:00:24.5]} 66... Kd6 {[%clk 0:00:10]} 67. Ke8 {[%clk 0:00:24.1]} 67...
Qe7# {[%clk 0:00:10.6]} 0-1